[Event "Icelandic Open 2019"]
[Site "Akureyri"]
[Date "2019.05.31"]
[Round "8.9"]
[White "Jonsson, Gauti Pall"]
[Black "Thorhallsson, Throstur"]
[Result "0-1"]
[ECO "B21"]
[WhiteElo "2033"]
[BlackElo "2435"]
[Annotator "ChessBase"]
[PlyCount "90"]
[EventDate "2019.05.25"]
[EventType "swiss"]
[EventCountry "ISL"]
[SourceTitle "playchess.com"]
[Source "ChessBase"]
[SourceQuality "1"]
[TimeControl "40/5400+30:1800+30"]

1. e4 {[%emt 0:00:00]} c5 {[%emt 0:00:00]} 2. Be2 {[%emt 0:00:08]} Nc6 {[%emt 0:02:18]} 3. f4 {[%emt 0:01:21]} g6 {[%emt 0:01:21]} 4. Nf3 {[%emt 0:00:39]} Bg7 {[%emt 0:00:11]} 5. O-O {[%emt 0:00:46]} d6 {[%emt 0:03:47]} 6. d3 {[%emt 0:00:58]} e6 {[%emt 0:02:05]} 7. c3 {[%emt 0:02:14]} Nf6 {[%emt 0:03:14]} 8. Kh1 {[%emt 0:01:46]} O-O {[%emt 0:01:11]} 9. Be3 {[%emt 0:01:07]} b6 {[%emt 0:01:30]} 10. Nbd2 {[%emt 0:01:33]} Bb7 {[%emt 0:01:22]} 11. Qe1 {[%emt 0:03:59]} Ng4 {[%emt 0:02:43]} 12. Bg1 {[%emt 0:01:13]} Qe7 {[%emt 0:05:01]} 13. h3 {[%emt 0:01:09]} Nh6 {[%emt 0:00:29]} 14. Be3 {[%emt 0:14:19]} f5 {[%emt 0:03:47]} 15. Qg3 {[%emt 0:01:16]} fxe4 {[%emt 0:16:52]} 16. dxe4 {[%emt 0:00:50]} d5 {[%emt 0:00:22]} 17. Bd3 {[%emt 0:00:32]} dxe4 {[%emt 0:05:34]} 18. Bxe4 {[%emt 0:00:40]} Nf5 {[%emt 0:00:47]} 19. Bxf5 {[%emt 0:03:08]} exf5 {[%emt 0:00:38]} 20. Rfe1 {[%emt 0:00:25]} Qf6 {[%emt 0:04:38]} 21. Nc4 {[%emt 0:03:33]} Rad8 {[%emt 0:01:39]} 22. Bf2 {[%emt 0:01:16]} Qf7 {[%emt 0:17:05]} 23. Nce5 {[%emt 0:04:07]} Nxe5 {[%emt 0:00:20]} 24. Nxe5 {[%emt 0:00:16]} Qc7 {[%emt 0:05:02]} 25. Re3 {[%emt 0:03:38]} Be4 {[%emt 0:01:00]} 26. Nf3 {[%emt 0:04:14]} Bf6 {[%emt 0:06:18]} 27. Rae1 {[%emt 0:01:06]} Qf7 {[%emt 0:00:30]} 28. b3 {[%emt 0:02:15]} h6 {[%emt 0:00:16]} 29. R1e2 {[%emt 0:02:16]} Rd1+ {[%emt 0:01:14]} 30. Kh2 {[%emt 0:01:33]} Rfd8 {[%emt 0:00:50]} 31. Re1 {[%emt 0:01:29]} R1d3 {[%emt 0:01:00]} 32. Rxd3 {[%emt 0:01:52]} Rxd3 {[%emt 0:00:05]} 33. c4 {[%emt 0:00:39]} Bxf3 {[%emt 0:00:56]} 34. gxf3 {[%emt 0:00:08]} Rd2 {[%emt 0:00:58]} 35. Kg1 {[%emt 0:01:11]} Kh7 {[%emt 0:00:36]} 36. Qg2 {[%emt 0:01:01]} Bd4 {[%emt 0:02:30]} 37. Rf1 {[%emt 0:00:25]} Rxa2 {[%emt 0:01:28]} 38. Qg3 {[%emt 0:00:11]} Bf6 {[%emt 0:02:18]} 39. Rd1 {[%emt 0:01:12]} h5 {[%emt 0:01:22]} 40. Kh1 {[%emt 0:00:00]} Rb2 {[%emt 0:00:00]} 41. Rd3 {[%emt 0:01:00]} Qe7 {[%emt 0:04:04]} 42. Re3 {[%emt 0:00:21]} Qd7 {[%emt 0:00:54]} 43. Bg1 {[%emt 0:01:25]} Qd2 {[%emt 0:02:25]} 44. Re6 {[%emt 0:00:42]} h4 {[%emt 0:00:31]} 45. Qh2 {[%emt 0:00:34]} Qc3 {[%emt 0:02:50]} 0-1

[Event "Icelandic Open 2019"]
[Site "Akureyri"]
[Date "2019.05.31"]
[Round "8.10"]
[White "Gower, Sam"]
[Black "Sigurdsson, Snorri Thor"]
[Result "1/2-1/2"]
[ECO "C01"]
[WhiteElo "2069"]
[BlackElo "1965"]
[Annotator "NA"]
[PlyCount "66"]
[EventDate "2019.05.25"]
[EventType "swiss"]
[EventCountry "ISL"]
[SourceTitle "playchess.com"]
[Source "ChessBase"]
[SourceQuality "1"]
[TimeControl "40/5400+30:1800+30"]

1. e4 {[%emt 0:00:00]} e6 {[%emt 0:00:00]} 2. d4 {[%emt 0:00:00]} d5 {[%emt 0:00:00]} 3. exd5 {[%emt 0:00:00]} exd5 {[%emt 0:00:00]} 4. Nf3 {[%emt 0:00:00]} Bd6 {[%emt 0:00:40]} 5. c4 {[%emt 0:00:19]} Nf6 {[%emt 0:00:56]} 6. Nc3 {[%emt 0:00:46]} c6 {[%emt 0:30:39]} 7. Bd3 {[%emt 0:00:34]} O-O {[%emt 0:01:35]} 8. O-O {[%emt 0:00:18]} h6 {[%emt 0:00:44]} 9. Ne5 {[%emt 0:13:23]} Nbd7 {[%emt 0:07:42]} 10. Bf4 {[%emt 0:11:02]} Qc7 {[%emt 0:06:00]} 11. Re1 {[%emt 0:03:00]} dxc4 {[%emt 0:01:08]} 12. Bxc4 {[%emt 0:02:23]} Nb6 {[%emt 0:00:08]} 13. Bb3 {[%emt 0:05:12]} Bf5 {[%emt 0:01:13]} 14. Rc1 {[%emt 0:03:17]} a6 {[%emt 0:01:13]} 15. Nxf7 {[%emt 0:11:44]} Bxf4 {[%emt 0:15:26]} 16. Nxh6+ {[%emt 0:01:08]} Kh8 {[%emt 0:00:39]} 17. Nxf5 {[%emt 0:00:31]} Bxc1 {[%emt 0:01:06]} 18. Qxc1 {[%emt 0:02:54]} Ng4 {[%emt 0:05:38]} 19. Qg5 {[%emt 0:13:49]} Qxh2+ {[%emt 0:06:21]} 20. Kf1 {[%emt 0:00:04]} Rxf5 {[%emt 0:00:17]} 21. Qxf5 {[%emt 0:04:13]} Qh1+ {[%emt 0:01:17]} 22. Ke2 {[%emt 0:00:28]} Qxg2 {[%emt 0:05:25]} 23. Qh5+ {[%emt 0:08:26]} Nh6 {[%emt 0:00:02]} 24. Kd1 {[%emt 0:00:15]} Qg4+ {[%emt 0:01:25]} 25. Qxg4 {[%emt 0:00:38]} Nxg4 {[%emt 0:00:02]} 26. Re7 {[%emt 0:02:40]} Rd8 {[%emt 0:01:31]} 27. Rxb7 {[%emt 0:01:37]} Rxd4+ {[%emt 0:00:14]} 28. Ke2 {[%emt 0:00:09]} Nd7 {[%emt 0:01:06]} 29. f3 {[%emt 0:09:09]} Nge5 {[%emt 0:01:39]} 30. Ke3 {[%emt 0:00:19]} Rd3+ {[%emt 0:00:43]} 31. Ke2 {[%emt 0:00:32]} Rd4 {[%emt 0:04:24]} 32. Ke3 {[%emt 0:01:36]} Rd3+ {[%emt 0:00:15]} 33. Ke2 {[%emt 0:00:06]} Rd4 {[%emt 0:00:23]} 1/2-1/2

[Event "Icelandic Open 2019"]
[Site "Akureyri"]
[Date "2019.05.31"]
[Round "8.11"]
[White "Kristjansson, Olafur"]
[Black "Ruelland, Geoffrey"]
[Result "1/2-1/2"]
[ECO "B90"]
[WhiteElo "2069"]
[BlackElo "1955"]
[Annotator "NA"]
[PlyCount "56"]
[EventDate "2019.05.25"]
[EventType "swiss"]
[EventCountry "ISL"]
[SourceTitle "playchess.com"]
[Source "ChessBase"]
[SourceQuality "1"]
[TimeControl "40/5400+30:1800+30"]

1. e4 {[%emt 0:00:00]} c5 {[%emt 0:00:17]} 2. Nf3 {[%emt 0:00:00]} e6 {[%emt 0:00:22]} 3. d4 {[%emt 0:00:00]} cxd4 {[%emt 0:00:22]} 4. Nxd4 {[%emt 0:00:00]} Nf6 {[%emt 0:00:50]} 5. Nc3 {[%emt 0:00:05]} d6 {[%emt 0:00:20]} 6. Be2 {[%emt 0:07:27]} Nc6 {[%emt 0:01:43]} 7. Be3 {[%emt 0:00:33]} a6 {[%emt 0:01:57]} 8. g4 {[%emt 0:03:40]} Qc7 {[%emt 0:05:57]} 9. g5 {[%emt 0:05:13]} Nd7 {[%emt 0:00:15]} 10. O-O {[%emt 0:03:01]} Be7 {[%emt 0:03:27]} 11. f4 {[%emt 0:01:56]} b5 {[%emt 0:05:19]} 12. f5 {[%emt 0:02:10]} Nde5 {[%emt 0:02:23]} 13. fxe6 {[%emt 0:07:30]} fxe6 {[%emt 0:03:05]} 14. Nxc6 {[%emt 0:11:18]} Qxc6 {[%emt 0:08:14]} 15. Qd4 {[%emt 0:03:28]} Qc5 {[%emt 0:17:00]} 16. Qd2 {[%emt 0:07:28]} Bxg5 {[%emt 0:14:57]} 17. Bxc5 {[%emt 0:01:00]} Bxd2 {[%emt 0:00:08]} 18. Bxd6 {[%emt 0:01:03]} Be3+ {[%emt 0:00:35]} 19. Kg2 {[%emt 0:04:13]} Nf7 {[%emt 0:03:30]} 20. Bb4 {[%emt 0:04:00]} Bd7 {[%emt 0:01:32]} 21. a4 {[%emt 0:08:02]} bxa4 {[%emt 0:02:23]} 22. Nxa4 {[%emt 0:00:05]} Bc6 {[%emt 0:03:12]} 23. Bd3 {[%emt 0:05:24]} a5 {[%emt 0:15:22]} 24. Bc5 {[%emt 0:07:31]} Bxc5 {[%emt 0:01:46]} 25. Nxc5 {[%emt 0:00:07]} Ke7 {[%emt 0:01:57]} 26. Nxe6 {[%emt 0:08:24]} Kxe6 {[%emt 0:00:16]} 27. Bc4+ {[%emt 0:00:06]} Kd6 {[%emt 0:00:05]} 28. Rxf7 {[%emt 0:01:43]} Bxe4+ {[%emt 0:00:08]} 1/2-1/2

[Event "Icelandic Open 2019"]
[Site "Akureyri"]
[Date "2019.05.31"]
[Round "8.12"]
[White "Dietzsch, Herbert"]
[Black "Briem, Benedikt"]
[Result "1/2-1/2"]
[ECO "B01"]
[WhiteElo "2059"]
[BlackElo "1811"]
[Annotator "NA"]
[PlyCount "35"]
[EventDate "2019.05.25"]
[EventType "swiss"]
[EventCountry "ISL"]
[SourceTitle "playchess.com"]
[Source "ChessBase"]
[SourceQuality "1"]
[TimeControl "40/5400+30:1800+30"]

1. e4 {[%emt 0:00:00]} d5 {[%emt 0:00:00]} 2. exd5 {[%emt 0:00:00]} Qxd5 {[%emt 0:00:00]} 3. Nc3 {[%emt 0:00:08]} Qd6 {[%emt 0:00:00]} 4. Nf3 {[%emt 0:00:58]} Nf6 {[%emt 0:00:02]} 5. h3 {[%emt 0:00:04]} c6 {[%emt 0:00:15]} 6. d4 {[%emt 0:02:56]} Bf5 {[%emt 0:01:22]} 7. Bd3 {[%emt 0:03:25]} Bxd3 {[%emt 0:00:54]} 8. Qxd3 {[%emt 0:00:09]} Nbd7 {[%emt 0:00:47]} 9. Bg5 {[%emt 0:09:14]} e6 {[%emt 0:01:56]} 10. O-O {[%emt 0:12:25]} Be7 {[%emt 0:00:52]} 11. Rfe1 {[%emt 0:01:47]} O-O {[%emt 0:02:35]} 12. Rad1 {[%emt 0:09:56]} Rfe8 {[%emt 0:05:48]} 13. a3 {[%emt 0:07:44]} Qc7 {[%emt 0:07:43]} 14. Ne5 {[%emt 0:18:56]} Rad8 {[%emt 0:06:11]} 15. Qg3 {[%emt 0:01:33]} Nh5 {[%emt 0:21:58]} 16. Qf3 {[%emt 0:05:21]} Nxe5 {[%emt 0:03:49]} 17. Qxh5 {[%emt 0:01:50]} Ng6 {[%emt 0:03:02]} 18. Bxe7 {[%emt 0:06:33]} 1/2-1/2

[Event "Icelandic Open 2019"]
[Site "Akureyri"]
[Date "2019.05.31"]
[Round "8.13"]
[White "Barthel, Ansgar"]
[Black "Sigurdarson, Tomas Veigar"]
[Result "0-1"]
[ECO "C01"]
[WhiteElo "2062"]
[BlackElo "1994"]
[Annotator "NA"]
[PlyCount "66"]
[EventDate "2019.05.25"]
[EventType "swiss"]
[EventCountry "ISL"]
[SourceTitle "playchess.com"]
[Source "ChessBase"]
[SourceQuality "1"]
[TimeControl "40/5400+30:1800+30"]

1. e4 {[%emt 0:00:00]} e6 {[%emt 0:00:00]} 2. d4 {[%emt 0:00:00]} d5 {[%emt 0:00:03]} 3. Nc3 {[%emt 0:00:00]} Bb4 {[%emt 0:00:10]} 4. exd5 {[%emt 0:00:00]} exd5 {[%emt 0:00:08]} 5. Bd3 {[%emt 0:00:04]} Nc6 {[%emt 0:03:25]} 6. a3 {[%emt 0:00:08]} Ba5 {[%emt 0:02:57]} 7. Nge2 {[%emt 0:05:10]} Nge7 {[%emt 0:02:14]} 8. O-O {[%emt 0:04:31] C01: French: Exchange Variation} Bb6 {[%emt 0:03:01]} (8... O-O 9. Bg5 f6 10. Be3 Bf5 11. Nf4 Bxc3 12. bxc3 Qd7 13. c4 Bxd3 14. Qxd3 Rad8 15. Rab1 b6 16. Rb5 dxc4 17. Qxc4+ {0-1 (48) Hou,Y (2680)-Mamedyarov,S (2804) Wijk aan Zee 2018}) 9. Na4 $146 {[%emt 0:14:38]} ({Predecessor:} 9. Be3 Bf5 10. Ng3 Bxd3 11. Qxd3 Qd7 12. Rfe1 O-O 13. Na4 Nd8 14. Bg5 f6 15. Nxb6 axb6 {1-0 (43) Moskalenko,V (2520)-Almeida Quintana,O (2425) Solsona 2003}) 9... Bxd4 {[%emt 0:13:06]} 10. Nxd4 {[%emt 0:00:39]} Nxd4 {[%emt 0:00:06]} 11. Re1 {[%emt 0:16:07]} Bf5 {[%emt 0:20:19]} 12. Nc5 {[%emt 0:28:31]} b6 {[%emt 0:09:19]} 13. Bg5 {[%emt 0:08:53]} f6 {[%emt 0:09:06]} 14. Bxf6 {[%emt 0:04:48]} gxf6 {[%emt 0:05:33]} 15. Bxf5 {[%emt 0:00:46]} bxc5 {[%emt 0:00:41]} 16. Qh5+ {[%emt 0:00:07]} Kf8 {[%emt 0:00:19]} 17. Be6 {[%emt 0:06:29]} Nxe6 {[%emt 0:07:08]} 18. Rxe6 {[%emt 0:00:04]} Ng6 {[%emt 0:01:18]} 19. Rae1 {[%emt 0:00:17]} Kg7 {[%emt 0:00:57]} 20. f4 {[%emt 0:04:11]} f5 {[%emt 0:03:53]} 21. Qxf5 {[%emt 0:00:30]} Rf8 {[%emt 0:00:05]} 22. Qg4 {[%emt 0:00:12]} Kh8 {[%emt 0:02:40]} 23. g3 {[%emt 0:01:02]} Nxf4 {[%emt 0:01:55]} 24. Re7 {[%emt 0:00:36]} Ng6 {[%emt 0:00:11]} 25. R7e6 {[%emt 0:01:20]} Rf6 {[%emt 0:01:54]} 26. R6e2 {[%emt 0:01:46]} Qf8 {[%emt 0:00:16]} 27. h4 {[%emt 0:00:14]} Nf4 {[%emt 0:01:17]} 28. Re5 {[%emt 0:00:39]} Rg6 {[%emt 0:01:20]} 29. Qd7 {[%emt 0:00:47]} Rxg3+ {[%emt 0:01:47]} 30. Kf2 {[%emt 0:00:37]} Nd3+ {[%emt 0:02:32]} 31. Kxg3 {[%emt 0:00:38]} Qf4+ {[%emt 0:00:05] Double Attack} 32. Kh3 {[%emt 0:00:41]} Nxe5 {[%emt 0:01:03]} 33. Qxd5 {[%emt 0:00:45]} Qf5+ {[%emt 0:00:06]} 0-1

[Event "Icelandic Open 2019"]
[Site "Akureyri"]
[Date "2019.05.31"]
[Round "8.14"]
[White "Pupols, Viktors"]
[Black "Pinto, Mark"]
[Result "1/2-1/2"]
[ECO "D02"]
[WhiteElo "2023"]
[BlackElo "2082"]
[Annotator "NA"]
[PlyCount "108"]
[EventDate "2019.05.25"]
[EventType "swiss"]
[EventCountry "ISL"]
[SourceTitle "playchess.com"]
[Source "ChessBase"]
[SourceQuality "1"]
[TimeControl "40/5400+30:1800+30"]

1. d4 {[%emt 0:00:00]} g6 {[%emt 0:00:00]} 2. Nf3 {[%emt 0:00:03]} Bg7 {[%emt 0:00:00]} 3. g3 {[%emt 0:00:29]} d5 {[%emt 0:00:00]} 4. c3 {[%emt 0:00:32]} Nf6 {[%emt 0:00:00]} 5. Bg2 {[%emt 0:00:19]} O-O {[%emt 0:00:05]} 6. O-O {[%emt 0:00:13]} c6 {[%emt 0:02:53]} 7. Nbd2 {[%emt 0:00:33]} Nbd7 {[%emt 0:00:16]} 8. Qc2 {[%emt 0:00:44] D02: 1 d4 d5 2 Nf3 sidelines, including 2...Nf6 3 g3 and 2...Nf6 3 Bf4} (8. Re1 c5 9. a4 cxd4 10. cxd4 a5 11. Nb1 Nb8 12. Nc3 Nc6 13. Ne5 Bf5 14. Bg5 Nb4 15. Rc1 Ne4 16. Be3 Nxc3 17. bxc3 {1-0 (28) Kramnik,V (2800)-Dubov,D (2701) Moscow 2018}) 8... b6 {[%emt 0:07:18]} 9. e4 {[%emt 0:00:40]} dxe4 {[%emt 0:00:12]} 10. Nxe4 {[%emt 0:00:04]} Bb7 {[%emt 0:00:04]} 11. Nxf6+ $146 {[%emt 0:00:43]} ({Predecessor:} 11. Re1 c5 12. Nxf6+ Bxf6 13. Bh6 Re8 14. Rad1 cxd4 15. Nxd4 {½-½ (15) Zhelesny,S (2194)-Adamowicz,K (2103) Moscow 2011}) 11... exf6 {[%emt 0:07:24]} 12. Bf4 {[%emt 0:01:41]} c5 {[%emt 0:01:09]} 13. dxc5 {[%emt 0:08:45]} Nxc5 {[%emt 0:00:09]} 14. Rad1 {[%emt 0:01:05]} Qc8 {[%emt 0:00:17]} 15. Rfe1 {[%emt 0:01:58]} Re8 {[%emt 0:00:27]} 16. Rxe8+ {[%emt 0:04:44]} Qxe8 {[%emt 0:00:15]} 17. Ne1 {[%emt 0:00:25]} Bxg2 {[%emt 0:00:13]} 18. Nxg2 {[%emt 0:00:18]} f5 {[%emt 0:02:33]} 19. Qd2 {[%emt 0:08:11]} Ne6 {[%emt 0:03:54]} 20. Qd7 {[%emt 0:03:50]} Nc5 {[%emt 0:01:28]} 21. Qxe8+ {[%emt 0:01:52]} Rxe8 {[%emt 0:00:02]} 22. Kf1 {[%emt 0:00:13]} h5 {[%emt 0:05:06]} 23. Ne1 {[%emt 0:06:19]} Bf6 {[%emt 0:07:05]} 24. h4 {[%emt 0:00:21]} Re4 {[%emt 0:07:36]} 25. Bd6 {[%emt 0:09:25]} Ne6 {[%emt 0:02:48]} 26. f4 {[%emt 0:01:49]} Ra4 {[%emt 0:04:45]} 27. a3 {[%emt 0:00:29]} Rc4 {[%emt 0:03:14]} 28. Kf2 {[%emt 0:12:43]} a5 {[%emt 0:00:39]} 29. Nc2 {[%emt 0:01:18]} Rc6 {[%emt 0:07:50]} 30. Ne3 {[%emt 0:04:05]} Kg7 {[%emt 0:00:29]} 31. a4 {[%emt 0:01:53]} Kh6 {[%emt 0:06:24]} 32. Rd3 {[%emt 0:00:54]} Kg7 {[%emt 0:00:12]} 33. Ke2 {[%emt 0:01:26]} Kh6 {[%emt 0:02:13]} 34. Kd2 {[%emt 0:00:56]} Kg7 {[%emt 0:00:19]} 35. Ba3 {[%emt 0:07:38]} Rc7 {[%emt 0:15:10]} 36. Nd5 {[%emt 0:06:17]} Rb7 {[%emt 0:00:33]} 37. Kc2 {[%emt 0:01:16]} Bd8 {[%emt 0:00:33]} 38. Bd6 {[%emt 0:01:06]} b5 {[%emt 0:02:49]} 39. axb5 {[%emt 0:00:00]} Rxb5 {[%emt 0:00:00]} 40. c4 {[%emt 0:00:00]} Rb7 {[%emt 0:00:00]} 41. Ba3 {[%emt 0:05:54]} a4 {[%emt 0:04:00]} 42. Nc3 {[%emt 0:08:42]} Ra7 {[%emt 0:02:14]} 43. Nb5 {[%emt 0:01:41]} (43. Rd5 $16) 43... Ra8 {[%emt 0:02:08]} 44. Rd7 {[%emt 0:01:18]} Bf6 {[%emt 0:01:53]} 45. Nd6 {[%emt 0:05:33]} Bd4 {[%emt 0:06:17]} 46. Nxf7 {[%emt 0:01:01]} Kg8 {[%emt 0:00:50]} 47. Ng5 {[%emt 0:06:17]} Nxg5 {[%emt 0:00:13]} 48. Rxd4 {[%emt 0:00:31]} Ne4 {[%emt 0:00:12]} 49. Rd3 {[%emt 0:03:10]} Kf7 {[%emt 0:00:41]} 50. b4 {[%emt 0:00:47]} (50. c5 $16) 50... axb3+ {[%emt 0:00:08]} 51. Rxb3 {[%emt 0:00:40]} Rc8 {[%emt 0:00:36]} 52. Rb7+ {[%emt 0:02:56]} Kg8 {[%emt 0:01:52]} 53. Bb2 $11 {[%emt 0:00:17]} Rxc4+ {[%emt 0:00:17]} 54. Kd3 {[%emt 0:00:21]} Rc6 {[%emt 0:01:52]} 1/2-1/2

[Event "Icelandic Open 2019"]
[Site "Akureyri"]
[Date "2019.05.31"]
[Round "8.15"]
[White "Johannsson, Birkir Isak"]
[Black "Petursson, Gudni"]
[Result "1-0"]
[ECO "E18"]
[WhiteElo "1981"]
[BlackElo "2045"]
[Annotator "NA"]
[PlyCount "145"]
[EventDate "2019.05.25"]
[EventType "swiss"]
[EventCountry "ISL"]
[SourceTitle "playchess.com"]
[Source "ChessBase"]
[SourceQuality "1"]
[TimeControl "40/5400+30:1800+30"]

1. d4 {[%emt 0:00:00]} Nf6 {[%emt 0:00:00]} 2. c4 {[%emt 0:00:00]} e6 {[%emt 0:00:00]} 3. Nf3 {[%emt 0:00:00]} b6 {[%emt 0:00:00]} 4. g3 {[%emt 0:00:00]} Bb7 {[%emt 0:00:00]} 5. Bg2 {[%emt 0:00:00]} d5 {[%emt 0:00:31]} 6. cxd5 {[%emt 0:00:07]} exd5 {[%emt 0:00:07]} 7. O-O {[%emt 0:00:22]} Be7 {[%emt 0:00:08]} 8. Nc3 {[%emt 0:00:05]} O-O $11 {[%emt 0:00:07]} 9. Bf4 {[%emt 0:00:02]} Na6 {[%emt 0:03:01]} 10. Rc1 {[%emt 0:02:00]} c5 {[%emt 0:00:42]} 11. Qc2 {[%emt 0:01:16]} Nb4 {[%emt 0:03:05]} 12. Qb1 {[%emt 0:04:41]} Nc6 {[%emt 0:02:51]} 13. Rfd1 {[%emt 0:08:56]} c4 {[%emt 0:07:26]} 14. Ne5 {[%emt 0:05:58]} Na5 {[%emt 0:01:48]} 15. Bg5 {[%emt 0:10:25]} a6 {[%emt 0:08:07]} 16. Bxf6 {[%emt 0:06:57]} Bxf6 {[%emt 0:00:20]} 17. Qf5 {[%emt 0:00:30]} g6 {[%emt 0:08:30]} 18. Qf3 {[%emt 0:10:32]} Bxe5 {[%emt 0:01:39]} 19. dxe5 {[%emt 0:00:36]} d4 {[%emt 0:01:41]} 20. Qf4 {[%emt 0:00:31]} Bxg2 {[%emt 0:04:23]} 21. Rxd4 {[%emt 0:03:13]} Qe7 {[%emt 0:01:51]} 22. Kxg2 {[%emt 0:00:09]} Nc6 {[%emt 0:01:21]} 23. Rxc4 {[%emt 0:05:06]} Nxe5 {[%emt 0:00:39]} 24. Nd5 {[%emt 0:05:57]} Qd6 {[%emt 0:00:10]} 25. Nf6+ {[%emt 0:01:47]} Kg7 {[%emt 0:00:19]} 26. Re4 {[%emt 0:00:33]} Qxf6 {[%emt 0:00:35]} 27. Qxe5 {[%emt 0:00:09]} Qxe5 {[%emt 0:00:11]} 28. Rxe5 {[%emt 0:00:02]} Rac8 {[%emt 0:00:21]} 29. Rxc8 {[%emt 0:08:27]} Rxc8 {[%emt 0:00:01]} 30. Re3 {[%emt 0:00:29]} Rc2 {[%emt 0:00:32]} 31. Rb3 {[%emt 0:00:07]} b5 {[%emt 0:00:17]} 32. Kf3 {[%emt 0:01:00]} Kf6 {[%emt 0:00:11]} 33. Ra3 {[%emt 0:01:26]} Rxb2 {[%emt 0:00:18]} 34. Rxa6+ {[%emt 0:00:03]} Kg7 {[%emt 0:00:18]} 35. g4 {[%emt 0:00:35]} b4 {[%emt 0:00:09]} 36. h4 {[%emt 0:00:35]} b3 {[%emt 0:00:09]} 37. axb3 {[%emt 0:00:05]} Rxb3+ {[%emt 0:00:08]} 38. e3 {[%emt 0:00:03]} Rb5 {[%emt 0:00:22]} 39. Ra4 {[%emt 0:05:35]} h5 {[%emt 0:00:20]} 40. gxh5 {[%emt 0:00:00]} Rxh5 {[%emt 0:00:00]} 41. Kg4 {[%emt 0:02:27]} Rb5 {[%emt 0:00:22]} 42. f3 {[%emt 0:01:08]} Rb1 {[%emt 0:00:11]} 43. Ra5 {[%emt 0:03:42]} Rg1+ {[%emt 0:00:45]} 44. Kh3 {[%emt 0:00:38]} Rh1+ {[%emt 0:00:18]} 45. Kg3 {[%emt 0:00:04]} Rg1+ {[%emt 0:00:47]} 46. Kh2 {[%emt 0:00:06]} Re1 {[%emt 0:00:22]} 47. e4 {[%emt 0:00:11]} Rb1 {[%emt 0:01:02]} 48. h5 {[%emt 0:01:14]} gxh5 {[%emt 0:00:05]} 49. Rxh5 {[%emt 0:00:05]} Rc1 {[%emt 0:00:55]} 50. Kg3 {[%emt 0:00:13]} Rc6 {[%emt 0:00:59]} 51. Kf4 {[%emt 0:00:23]} Ra6 {[%emt 0:00:12]} 52. Rg5+ {[%emt 0:00:20]} Kf6 {[%emt 0:00:19]} 53. Rg8 {[%emt 0:00:18]} Rb6 {[%emt 0:00:32]} 54. e5+ {[%emt 0:00:39]} Ke7 {[%emt 0:00:29]} 55. Kf5 {[%emt 0:00:27]} Ra6 {[%emt 0:02:00]} 56. Rb8 {[%emt 0:01:05]} Ra7 {[%emt 0:00:21]} 57. Rb6 {[%emt 0:00:27]} Rc7 {[%emt 0:00:09]} 58. f4 {[%emt 0:00:18]} Ra7 {[%emt 0:00:05]} 59. Kg5 {[%emt 0:02:06]} Ra1 {[%emt 0:02:09]} 60. Rb7+ {[%emt 0:01:45]} Ke6 {[%emt 0:00:13]} 61. f5+ {[%emt 0:00:31]} Kxe5 {[%emt 0:00:17]} 62. Re7+ {[%emt 0:00:12]} Kd6 {[%emt 0:00:29]} 63. Rxf7 {[%emt 0:14:46]} Re1 {[%emt 0:01:10]} 64. Kf6 {[%emt 0:01:14]} Re8 {[%emt 0:01:29]} 65. Ra7 {[%emt 0:09:24]} Re1 {[%emt 0:01:14]} 66. Kf7 {[%emt 0:02:06]} Rh1 {[%emt 0:00:11]} 67. Ra6+ {[%emt 0:02:57]} Kd7 {[%emt 0:00:09]} 68. f6 {[%emt 0:00:19]} Rg1 {[%emt 0:00:23]} 69. Kf8 {[%emt 0:00:29]} Rg2 {[%emt 0:00:12]} 70. f7 {[%emt 0:00:09]} Rg1 {[%emt 0:00:46]} 71. Ra4 {[%emt 0:00:34]} Rd1 {[%emt 0:00:20]} 72. Rg4 {[%emt 0:01:08]} Rf1 {[%emt 0:01:57]} 73. Kg7 {[%emt 0:00:35]} 1-0

[Event "Icelandic Open 2019"]
[Site "Akureyri"]
[Date "2019.06.01"]
[Round "9.4"]
[White "Thorfinnsson, Bragi"]
[Black "Bergsson, Stefan"]
[Result "1-0"]
[ECO "A02"]
[WhiteElo "2451"]
[BlackElo "2124"]
[Annotator "ChessBase"]
[PlyCount "81"]
[EventDate "2019.05.25"]
[EventType "swiss"]
[EventCountry "ISL"]
[SourceTitle "playchess.com"]
[Source "ChessBase"]
[SourceQuality "1"]
[TimeControl "40/5400+30:1800+30"]

1. b3 {[%emt 0:00:37]} g6 {[%emt 0:00:00]} 2. Bb2 {[%emt 0:00:21]} Nf6 {[%emt 0:00:00]} 3. e4 {[%emt 0:01:55]} d6 {[%emt 0:00:18]} 4. f4 {[%emt 0:02:32]} Bg7 {[%emt 0:02:28]} 5. Nf3 {[%emt 0:02:40]} O-O {[%emt 0:05:19]} 6. Bd3 {[%emt 0:02:05]} c5 {[%emt 0:01:58]} 7. O-O {[%emt 0:03:41]} Nc6 {[%emt 0:03:36]} 8. Qe1 {[%emt 0:06:54]} Rb8 {[%emt 0:01:14]} 9. Nc3 {[%emt 0:09:59]} Nb4 {[%emt 0:02:16]} 10. Qh4 {[%emt 0:05:29]} a6 {[%emt 0:04:31]} 11. f5 {[%emt 0:05:33]} b5 {[%emt 0:07:07]} 12. Ng5 {[%emt 0:05:13]} h6 {[%emt 0:16:24]} 13. Nh3 {[%emt 0:02:39]} c4 {[%emt 0:02:09]} 14. bxc4 {[%emt 0:04:51]} Nxd3 {[%emt 0:00:24]} 15. cxd3 {[%emt 0:00:15]} bxc4 {[%emt 0:00:02]} 16. Rab1 {[%emt 0:01:22]} cxd3 {[%emt 0:00:42]} 17. Qg3 {[%emt 0:04:56]} g5 {[%emt 0:02:33]} 18. Nf2 {[%emt 0:04:44]} a5 {[%emt 0:10:30]} 19. h4 {[%emt 0:04:00]} Nh5 {[%emt 0:08:43]} 20. Qg4 {[%emt 0:04:53]} Nf6 {[%emt 0:00:16]} 21. Qh3 {[%emt 0:03:05]} gxh4 {[%emt 0:03:52]} 22. Qxh4 {[%emt 0:00:00]} Ba6 {[%emt 0:05:07]} 23. Ng4 {[%emt 0:01:27]} Nxg4 {[%emt 0:02:57]} 24. Qxg4 {[%emt 0:00:31]} Qc8 {[%emt 0:03:21]} 25. Nd5 {[%emt 0:01:25]} Qc5+ {[%emt 0:03:24]} 26. Kh1 {[%emt 0:00:41]} Rxb2 {[%emt 0:04:33]} 27. Rxb2 {[%emt 0:00:54]} Kh8 {[%emt 0:01:53]} 28. Rbb1 {[%emt 0:02:09]} Re8 {[%emt 0:01:23]} 29. Nxe7 {[%emt 0:03:01]} Qd4 {[%emt 0:02:15]} 30. Nd5 {[%emt 0:02:02]} Rxe4 {[%emt 0:00:44]} 31. Rb8+ {[%emt 0:00:28]} Kh7 {[%emt 0:00:02]} 32. Nf6+ {[%emt 0:00:15]} Qxf6 {[%emt 0:00:16]} 33. Qxe4 {[%emt 0:00:09]} d5 {[%emt 0:01:04]} 34. Qg4 {[%emt 0:00:42]} Bc4 {[%emt 0:01:19]} 35. a4 {[%emt 0:00:53]} Ba2 {[%emt 0:00:49]} 36. Re1 {[%emt 0:01:22]} Qd4 {[%emt 0:03:53]} 37. Qg3 {[%emt 0:01:57]} Bc4 {[%emt 0:00:36]} 38. Ree8 {[%emt 0:01:11]} Qa1+ {[%emt 0:00:29]} 39. Kh2 {[%emt 0:00:08]} h5 {[%emt 0:00:31]} 40. Qg5 {[%emt 0:00:00]} Be5+ {[%emt 0:00:00]} 41. g3 {[%emt 0:01:36]} 1-0